bitfinex/quotes_SOLUSD_20251204
["timestamp","ask_amount","ask_price","bid_price","bid_amount"]
[1764881535290,109.82057178,140.44,140.39,15.02289397]
[1764881535470,110.52057178,140.44,140.42,4.61611413]
[1764881535665,0.7,140.44,140.41,0.72]
[1764881535968,0.7,140.46,140.43,4.61611413]
[1764881536168,0.7,140.46,140.44,4.61611413]
[1764881536891,7.8195237,140.46,140.44,4.61611413]
[1764881537195,7.8195237,140.46,140.43,5.11611413]
[1764881537789,0.7,140.45,140.41,4.61611413]
[1764881537978,4.61611413,140.44,140.4,4.61611413]
[1764881538363,0.7,140.43,140.4,4.61611413]
[1764881539369,0.7,140.43,140.39,20.35880242]
[1764881539704,0.7,140.43,140.4,4.61611413]
[1764881540191,7.82110021,140.43,140.38,7.12329911]
[1764881540372,7.82110021,140.43,140.36,4.61611413]
[1764881540373,4.61611413,140.41,140.36,4.61611413]
[1764881540890,0.7,140.4,140.36,4.61611413]
[1764881541490,0.7,140.4,140.35,7.12486767]
[1764881541684,5.31611413,140.4,140.37,0.5]
[1764881541891,0.7,140.4,140.37,0.5]
[1764881542074,0.7,140.39,140.37,5.11611413]
[1764881542790,7.82306966,140.39,140.37,5.11611413]
[1764881543377,7.82306966,140.39,140.37,0.5]
[1764881543686,7.82306966,140.39,140.37,5.11611413]
[1764881544295,0.7,140.39,140.37,5.11611413]
[1764881544671,4.61611413,140.38,140.37,0.5]
[1764881544871,4.61611413,140.38,140.33,4.61611413]
[1764881545178,5.31611413,140.37,140.33,4.61611413]
[1764881545489,0.7,140.36,140.32,5.33611413]
[1764881545877,0.7,140.36,140.32,12.46259308]
[1764881546483,7.82458091,140.36,140.32,12.46259308]
[1764881546683,12.44069504,140.36,140.32,11.74253105]
[1764881546884,0.7,140.35,140.32,11.74253105]
[1764881547083,0.7,140.35,140.32,7.12641692]
[1764881547575,5.31611413,140.35,140.32,7.12641692]
[1764881548076,0.7,140.35,140.32,12.46253105]
[1764881548281,0.7,140.35,140.32,7.12641692]
[1764881548472,0.7,140.35,140.32,11.74253105]
[1764881548672,0.7,140.35,140.32,12.46253105]
[1764881550095,0.7,140.35,140.32,11.74253105]
[1764881550295,12.44126999,140.35,140.31,0.2]
[1764881550788,7.82515586,140.35,140.32,4.61611413]
[1764881551298,7.82515586,140.35,140.31,12.66317725]
[1764881553085,7.82515586,140.35,140.31,8.04706312]
[1764881553292,7.82515586,140.35,140.31,12.66317725]
[1764881553493,7.12515586,140.35,140.31,12.66317725]
[1764881553685,0.7,140.34,140.31,12.66317725]
[1764881554588,0.7,140.41,140.33,4.61611413]
[1764881554785,0.7,140.4,140.38,4.61611413]
[1764881555674,7.82254778,140.4,140.36,7.84426173]
[1764881555878,7.82254778,140.4,140.38,4.61611413]
[1764881556089,0.7,140.39,140.38,4.61611413]
[1764881556285,0.7,140.39,140.36,7.84426173]
[1764881556286,0.7,140.39,140.36,4.61611413]
[1764881556902,0.7,140.39,140.34,8.62]
[1764881556903,5.31611413,140.39,140.34,4.61611413]
[1764881557080,5.31611413,140.39,140.34,12.46166216]
[1764881557398,5.31611413,140.39,140.34,4.61611413]
[1764881557399,0.7,140.38,140.34,4.61611413]
[1764881557903,7.12402935,140.37,140.34,4.61611413]
[1764881558402,0.7,140.36,140.34,4.61611413]
[1764881559192,0.7,140.36,140.33,15.02592992]
[1764881559384,0.7,140.36,140.34,4.61611413]
[1764881559590,5.31611413,140.36,140.31,0.2]
[1764881559899,7.12504453,140.35,140.32,4.61611413]
[1764881560082,0.7,140.34,140.32,4.61611413]
[1764881560406,7.82504453,140.35,140.32,4.61611413]
[1764881560602,0.7,140.35,140.33,4.61611413]
[1764881560991,0.7,140.35,140.31,7.32685864]
[1764881561181,0.7,140.35,140.32,4.61611413]
[1764881561693,0.7,140.35,140.33,4.61611413]
[1764881561887,7.82511676,140.35,140.33,4.61611413]
[1764881562331,7.82511676,140.35,140.31,8.04685864]
[1764881562673,7.82511676,140.35,140.33,4.61611413]
[1764881562827,7.82511676,140.35,140.32,4.61611413]
[1764881563719,7.82511676,140.35,140.31,8.04685864]
[1764881563900,7.82511676,140.35,140.32,4.61611413]
[1764881565406,7.82511676,140.35,140.32,5.29611413]
[1764881565909,7.82511676,140.35,140.31,7.32685864]
[1764881565910,4.61611413,140.33,140.31,0.2]
[1764881566085,11.74217413,140.33,140.31,0.2]
[1764881566281,0.7,140.32,140.31,0.2]
[1764881566504,5.31611413,140.32,140.31,0.2]
[1764881567623,14.12605905,140.32,140.31,0.2]
[1764881567840,17.008864,140.35,140.31,0.88]
[1764881568123,0.7,140.38,140.34,4.61611413]
[1764881568303,0.7,140.38,140.35,4.61611413]
[1764881568726,0.7,140.38,140.34,5.29611413]
[1764881568911,7.82357599,140.38,140.34,5.29611413]
[1764881569305,0.7,140.37,140.34,5.29611413]
[1764881569829,0.7,140.37,140.34,0.68]
[1764881570147,0.7,140.4,140.36,4.61611413]
[1764881570328,0.7,140.42,140.37,7.9]
[1764881570509,0.7,140.42,140.39,4.61611413]
[1764881571431,7.82171359,140.42,140.39,5.29611413]
[1764881572009,7.82171359,140.42,140.39,4.61611413]
[1764881572433,7.82171359,140.42,140.39,12.24639637]
[1764881572831,7.12067875,140.44,140.41,12.24639637]
[1764881573026,7.12012665,140.45,140.42,12.24639637]
[1764881573230,7.82012665,140.45,140.42,12.24639637]
[1764881573622,15.92961855,140.46,140.43,12.24639637]
[1764881573817,15.92961855,140.46,140.43,12.92639637]
[1764881574024,7.11896477,140.47,140.44,12.24639637]
[1764881574229,0.7,140.46,140.44,12.24639637]
[1764881574417,0.7,140.46,140.43,7.02947519]
[1764881574919,7.81963361,140.46,140.43,7.70947519]
[1764881575229,7.11907166,140.47,140.44,7.02947519]
[1764881575432,8.80994492,140.49,140.46,7.02947519]
[1764881575843,9.50994492,140.49,140.46,7.02947519]
[1764881576428,0.7,140.48,140.46,7.02947519]
[1764881576625,0.7,140.48,140.41,42.01334302]
[1764881576825,0.7,140.48,140.44,7.02947519]
[1764881577341,7.02947519,140.47,140.43,7.02947519]
[1764881577523,0.7,140.48,140.45,7.02947519]
[1764881578040,15.92794379,140.49,140.45,7.70947519]
[1764881578341,0.7,140.48,140.46,7.02947519]
[1764881578509,0.7,140.48,140.45,7.79991219]
[1764881578510,0.7,140.49,140.45,7.11991219]
[1764881578714,0.7,140.48,140.45,14.82938738]
[1764881579132,16.47812478,140.5,140.45,14.82938738]
[1764881579133,10.14864959,140.5,140.47,7.02947519]
[1764881580027,0.7,140.49,140.46,7.70947519]
[1764881580334,2.33105371,140.5,140.47,7.02947519]
[1764881580537,0.7,140.49,140.45,7.02947519]
[1764881580840,0.7,140.49,140.41,16.308864]
[1764881580841,7.02947519,140.48,140.43,7.12085727]
[1764881581017,0.7,140.49,140.42,7.70947519]
[1764881581018,7.72947519,140.47,140.42,7.70947519]
[1764881581216,7.72947519,140.47,140.41,31.33073486]
[1764881581428,0.7,140.46,140.4,7.02947519]
[1764881581631,7.02947519,140.45,140.4,7.02947519]
[1764881582035,0.7,140.44,140.4,7.02947519]
[1764881582241,7.8207234,140.44,140.4,7.02947519]
[1764881582425,14.85019859,140.44,140.39,7.12257502]
[1764881582625,0.7,140.43,140.4,7.02947519]
[1764881583543,0.7,140.43,140.4,7.70947519]
[1764881583941,7.1207234,140.44,140.41,7.02947519]
[1764881584145,7.8207234,140.44,140.4,7.80249305]
[1764881584320,7.8207234,140.44,140.41,7.02947519]
[1764881584642,7.8207234,140.44,140.41,14.83145195]
[1764881584821,7.8207234,140.44,140.41,7.70947519]
[1764881585023,7.8207234,140.44,140.41,7.02947519]
[1764881586650,7.72947519,140.43,140.39,15.70296161]
[1764881586848,14.15019859,140.44,140.4,7.70947519]
[1764881587025,0.7,140.43,140.4,7.70947519]
[1764881587220,7.82003365,140.45,140.41,14.83128615]
[1764881587930,0.7,140.44,140.41,14.83128615]
[1764881588129,7.72947519,140.44,140.4,7.88]
[1764881588340,7.72947519,140.44,140.4,14.90947519]
[1764881588543,0.7,140.43,140.4,14.90947519]
[1764881588845,7.82110367,140.43,140.4,14.90947519]
[1764881589943,0.7,140.42,140.39,14.90947519]
[1764881590328,7.72947519,140.42,140.37,7.02947519]
[1764881590823,7.02947519,140.4,140.34,0.68]
[1764881591026,7.02947519,140.4,140.35,7.02947519]
[1764881591223,0.7,140.39,140.35,14.83449969]
[1764881591749,0.7,140.39,140.35,7.02947519]
[1764881591941,0.7,140.39,140.36,7.02947519]
[1764881592145,7.12265518,140.4,140.36,0.68]
[1764881592343,7.82209232,140.41,140.38,7.02947519]
[1764881592547,15.00157064,140.42,140.39,7.02947519]
[1764881592850,0.7,140.47,140.41,7.02947519]
[1764881593045,0.7,140.47,140.43,7.02947519]
[1764881593443,0.7,140.47,140.44,7.02947519]
[1764881593642,0.7,140.47,140.43,7.02947519]
[1764881594354,7.11946461,140.46,140.43,7.02947519]
[1764881594750,0.7,140.45,140.41,7.02947519]
[1764881595048,7.72947519,140.45,140.41,7.02947519]
[1764881595442,0.7,140.44,140.41,7.02947519]
[1764881596256,7.82061666,140.44,140.41,14.15145169]
[1764881596436,7.81961904,140.46,140.43,7.02947519]
[1764881596640,10.0605289,140.5,140.45,7.02947519]
[1764881596838,7.88,140.49,140.46,7.02947519]
[1764881597044,8.58,140.49,140.46,7.02947519]
[1764881597354,2.33105371,140.5,140.47,7.02947519]
[1764881597727,0.7,140.49,140.46,7.73947519]
[1764881597947,0.7,140.49,140.46,7.02947519]
[1764881598958,0.7,140.49,140.46,14.85893521]
[1764881599359,0.7,140.49,140.46,14.14893521]
[1764881599556,9.44885423,140.5,140.47,7.73947519]
[1764881599758,10.14885423,140.5,140.47,7.02947519]
[1764881600150,10.14885423,140.5,140.46,7.82946002]
[1764881600355,10.14885423,140.5,140.47,7.02947519]
[1764881600659,9.44885423,140.5,140.47,7.02947519]
[1764881600859,0.7,140.49,140.45,7.02947519]
[1764881601160,7.02947519,140.48,140.44,7.02947519]
[1764881601463,15.60947519,140.49,140.43,7.83059818]
[1764881601756,0.7,140.48,140.44,7.12045284]
[1764881601961,9.44885423,140.5,140.47,7.02947519]
[1764881602139,9.44885423,140.5,140.48,7.02947519]
[1764881602653,10.14885423,140.5,140.48,7.02947519]
[1764881603563,0.7,140.49,140.47,7.02947519]
[1764881603760,0.7,140.49,140.44,7.12031523]
[1764881604063,0.7,140.49,140.45,7.02947519]
[1764881604562,7.72947519,140.49,140.45,7.02947519]
[1764881604761,7.72947519,140.49,140.44,15.63947519]
[1764881604962,0.7,140.48,140.44,15.63947519]
[1764881605358,0.7,140.48,140.45,0.71]
[1764881605359,7.81883776,140.48,140.45,0.71]
[1764881605665,7.81883776,140.48,140.44,15.63947519]
[1764881606569,7.11883776,140.48,140.45,7.73947519]
[1764881606947,7.11883776,140.48,140.44,7.9]
[1764881607164,14.14831295,140.48,140.44,8.61]
[1764881607463,7.11943421,140.47,140.45,7.73947519]
[1764881607760,7.11943421,140.47,140.45,7.02947519]
[1764881608865,7.11943421,140.47,140.44,15.73042376]
[1764881609164,7.11943421,140.47,140.44,15.63947519]
[1764881609373,7.81943421,140.47,140.43,7.88]
[1764881609553,7.81943421,140.47,140.44,7.02947519]
[1764881610070,7.11943421,140.47,140.44,7.02947519]
[1764881610274,7.11943421,140.47,140.43,14.90947519]
[1764881610569,7.81943421,140.47,140.43,15.61947519]
[1764881610749,7.81943421,140.47,140.44,7.02947519]
[1764881611151,7.81943421,140.47,140.43,22.74003434]
[1764881611962,7.81943421,140.47,140.44,7.02947519]
[1764881612355,0.7,140.46,140.43,0.71]
[1764881612557,0.7,140.46,140.42,14.90947519]
[1764881613071,0.7,140.46,140.42,7.02947519]
[1764881613377,7.02947519,140.44,140.38,38.66298981]
[1764881613670,7.02947519,140.44,140.39,7.02947519]
[1764881613855,0.7,140.43,140.39,7.02947519]
[1764881614050,0.7,140.43,140.39,7.73947519]
[1764881614252,0.7,140.43,140.37,17.8093868]
[1764881614253,7.02947519,140.42,140.37,14.86311978]
[1764881614466,7.12199985,140.41,140.37,22.74311978]
[1764881614646,7.82199985,140.41,140.37,22.74311978]
[1764881615042,7.12166539,140.42,140.38,7.73947519]
[1764881615341,7.12016225,140.45,140.41,7.02947519]
[1764881615545,7.12016225,140.45,140.42,7.02947519]
[1764881615765,7.12016225,140.45,140.43,7.02947519]
[1764881616171,7.82016225,140.45,140.43,7.02947519]
[1764881617973,0.7,140.45,140.43,7.02947519]
[1764881618573,7.82002821,140.45,140.42,7.02947519]
[1764881619578,0.7,140.45,140.42,7.73947519]
[1764881620171,7.11968256,140.46,140.42,7.73947519]
[1764881620388,7.11968256,140.46,140.44,7.02947519]
[1764881621253,7.11907113,140.47,140.45,7.02947519]
[1764881621454,0.7,140.46,140.4,0.71]
[1764881621768,0.7,140.46,140.43,7.02947519]
[1764881622281,0.7,140.46,140.43,7.73947519]
[1764881622466,0.7,140.46,140.44,7.02947519]
[1764881622662,7.81977485,140.46,140.43,7.02947519]
[1764881623067,7.78977485,140.46,140.43,7.02947519]
[1764881623274,7.78977485,140.46,140.42,7.02947519]
[1764881623275,0.67,140.45,140.42,7.02947519]
[1764881624153,0.67,140.45,140.41,7.02947519]
[1764881624559,7.12047849,140.44,140.41,7.02947519]
[1764881625078,7.79047849,140.44,140.41,7.71947519]
[1764881625276,7.12047849,140.44,140.42,7.02947519]
[1764881625972,7.12047849,140.44,140.41,0.69]
[1764881626176,7.12047849,140.44,140.42,7.02947519]
[1764881626372,7.79047849,140.44,140.42,7.02947519]
[1764881627582,7.11895778,140.47,140.43,7.71947519]
[1764881627790,14.81843297,140.47,140.42,7.12131149]
[1764881628083,7.69947519,140.46,140.41,7.02947519]
[1764881628382,0.67,140.45,140.41,7.02947519]
[1764881628881,7.69947519,140.45,140.41,7.02947519]
[1764881629060,7.12098554,140.43,140.41,7.02947519]
[1764881629466,7.12098554,140.43,140.4,7.81244493]
[1764881629665,7.12098554,140.43,140.41,7.02947519]
[1764881630203,7.79098554,140.43,140.41,7.02947519]
[1764881630388,0.67,140.42,140.39,7.02947519]
[1764881631073,7.79190947,140.42,140.39,7.02947519]
[1764881631873,7.12190947,140.42,140.4,7.02947519]
[1764881632162,7.79190947,140.42,140.4,7.02947519]
[1764881632859,7.12190947,140.42,140.4,7.02947519]
[1764881633070,7.79190947,140.42,140.4,7.02947519]
[1764881633889,7.12190947,140.42,140.4,7.02947519]
[1764881634086,7.79190947,140.42,140.4,7.02947519]
[1764881635389,7.79190947,140.42,140.34,0.69]
[1764881635390,16.50942011,140.41,140.34,0.69]
[1764881635586,8.80994492,140.39,140.36,7.02947519]
[1764881635777,7.12352186,140.38,140.36,7.02947519]
[1764881635972,7.79352186,140.38,140.36,7.02947519]
[1764881636368,7.12352186,140.38,140.35,7.12494069]
[1764881636580,0.67,140.38,140.34,7.81533457]
[1764881636783,0.67,140.37,140.33,15.6958643]
[1764881637175,0.67,140.37,140.34,0.69]
[1764881637674,24.93072618,140.39,140.34,0.69]
[1764881637891,24.93072618,140.39,140.34,7.81538206]
[1764881638189,24.93072618,140.39,140.34,0.69]
[1764881638190,0.67,140.38,140.34,0.69]
[1764881638386,0.67,140.38,140.35,4.61903017]
[1764881638607,0.67,140.38,140.33,4.61903017]
[1764881638608,5.28903017,140.38,140.33,4.61903017]
[1764881638973,0.67,140.37,140.33,4.61903017]
[1764881639582,7.1245369,140.36,140.32,15.69643342]
[1764881639778,7.1245369,140.36,140.33,4.61903017]
[1764881639986,7.7945369,140.36,140.33,4.61903017]
[1764881640297,7.12392372,140.38,140.35,4.61903017]
[1764881640487,7.12392372,140.38,140.37,4.61903017]
[1764881640977,7.12392372,140.38,140.34,0.69]
[1764881641185,7.79392372,140.38,140.37,4.61903017]
[1764881642107,7.79392372,140.38,140.34,7.81540265]
[1764881642276,7.79392372,140.38,140.37,4.61903017]
[1764881642470,0.67,140.37,140.35,5.11903017]
[1764881642672,0.67,140.37,140.34,4.61903017]
[1764881643473,0.67,140.37,140.32,8.59]
[1764881643678,0.67,140.37,140.33,4.61903017]
[1764881644177,7.1245369,140.36,140.34,4.61903017]
[1764881644595,7.7945369,140.36,140.34,4.61903017]
[1764881644973,7.7945369,140.36,140.33,5.30903017]
[1764881645287,7.1245369,140.36,140.33,5.30903017]
[1764881645486,7.7945369,140.36,140.33,5.30903017]
[1764881646197,7.7945369,140.36,140.33,4.61903017]
[1764881646404,0.67,140.35,140.32,4.61903017]
[1764881646591,0.67,140.35,140.32,5.30903017]
[1764881646897,4.61903017,140.33,140.31,0.2]
[1764881647283,14.09897509,140.32,140.31,0.2]
[1764881647487,30.40783909,140.32,140.31,0.2]
[1764881647696,9.47994492,140.32,140.31,0.2]
[1764881648084,14.09897509,140.32,140.31,0.2]
[1764881648492,21.22554293,140.32,140.31,0.2]
[1764881649185,16.60651276,140.32,140.31,0.2]
[1764881650204,0.67,140.36,140.31,0.89]
[1764881650399,8.80994492,140.35,140.32,4.61903017]
[1764881650698,7.12533465,140.35,140.32,5.30903017]
[1764881650898,7.12472929,140.36,140.34,4.61903017]
[1764881651601,7.12408709,140.37,140.34,5.30903017]
[1764881652191,7.12408709,140.37,140.35,4.61903017]
[1764881652389,7.12555223,140.34,140.31,0.2]
[1764881652736,13.42897509,140.33,140.31,0.2]
[1764881653004,4.61903017,140.32,140.31,0.2]
[1764881653203,22.02897509,140.32,140.31,0.2]
[1764881654199,25.11880892,140.31,140.3,0.2]
[1764881654404,45.22038184,140.31,140.3,0.2]
[1764881655199,32.94588468,140.31,140.3,0.2]
[1764881655388,45.22038184,140.31,140.3,0.2]
[1764881655706,44.52038184,140.31,140.3,0.2]
[1764881655901,45.22038184,140.31,140.3,0.2]
[1764881656088,7.12707576,140.31,140.3,0.2]
[1764881656491,7.82707576,140.31,140.3,0.2]
[1764881659500,7.12707576,140.31,140.3,0.2]
[1764881659808,7.82707576,140.31,140.3,0.2]
[1764881660393,7.12707576,140.31,140.3,0.2]
[1764881661012,15.93652503,140.32,140.3,0.2]
[1764881661211,15.93652503,140.32,140.3,13.17449716]
[1764881661391,15.93652503,140.32,140.3,0.9]
[1764881661591,15.93652503,140.32,140.3,0.2]
[1764881662092,16.63652503,140.32,140.3,0.2]
[1764881662506,102.7,140.33,140.31,0.7]
[1764881663015,102.7,140.33,140.32,12.27449716]
[1764881663400,102.7,140.33,140.31,12.97449716]
[1764881663607,109.82608369,140.33,140.3,12.47449716]
[1764881663800,109.82608369,140.33,140.3,13.17449716]
[1764881664606,110.52608369,140.33,140.3,0.2]
[1764881664911,0.7,140.32,140.3,0.2]
[1764881665113,122.10058085,140.33,140.3,0.2]
[1764881665114,122.80058085,140.33,140.3,0.2]
[1764881665324,109.82608369,140.33,140.3,13.17449716]
[1764881665632,110.52608369,140.33,140.3,0.2]
[1764881666335,0.7,140.32,140.3,0.2]
[1764881666811,7.12707576,140.31,140.3,0.2]
[1764881667418,15.93702068,140.31,140.3,0.2]
[1764881669506,16.63702068,140.31,140.3,0.2]
[1764881669709,15.93702068,140.31,140.3,0.2]
[1764881672117,109.82647077,140.33,140.3,13.17449716]
[1764881672318,8.80994492,140.32,140.3,13.17449716]
[1764881672540,102.7,140.33,140.31,0.7]
[1764881672707,102.7,140.33,140.32,12.27449716]
[1764881672907,102.7,140.33,140.32,12.97449716]
[1764881675275,102.7,140.33,140.32,20.101065]
[1764881677036,8.80994492,140.35,140.32,20.101065]
[1764881677211,8.80994492,140.35,140.33,12.27449716]
[1764881678017,8.80994492,140.35,140.33,12.97449716]
[1764881678415,7.12504528,140.35,140.33,12.97449716]
[1764881679545,15.93448182,140.36,140.32,7.82656784]
[1764881679843,16.63448182,140.36,140.33,12.27449716]
[1764881680363,16.308864,140.33,140.3,0.2]
[1764881680645,8.80994492,140.29,140.24,0.2]
[1764881680845,8.80994492,140.26,140.24,0.2]
[1764881681039,12.97449716,140.29,140.24,13.17449716]
[1764881681244,8.80994492,140.28,140.24,13.17449716]
[1764881681546,8.80994492,140.28,140.25,0.7]
[1764881681736,27.30286136,140.29,140.25,20.10453663]
[1764881682134,7.1283642,140.29,140.26,0.7]
[1764881682337,8.80994492,140.29,140.26,12.97449716]
[1764881682518,7.12773333,140.3,140.26,12.97449716]
[1764881682723,15.02712274,140.31,140.27,12.97449716]
[1764881682934,7.12519186,140.35,140.3,12.27449716]
[1764881683139,120.72575775,140.39,140.27,0.7]
[1764881683140,12.96449716,140.37,140.31,12.27449716]
[1764881683344,8.80994492,140.36,140.31,12.27449716]
[1764881683553,8.80994492,140.36,140.31,12.99449716]
[1764881683554,21.08444208,140.36,140.31,12.99449716]
[1764881683857,28.89935271,140.36,140.32,0.72]
[1764881684226,8.80994492,140.34,140.3,15.74751961]
[1764881684430,21.08444208,140.34,140.29,8.62]
[1764881684762,12.27449716,140.32,140.28,16.308864]
[1764881685122,12.27449716,140.32,140.29,0.72]
[1764881685731,20.09120801,140.32,140.28,16.308864]
[1764881685941,20.09120801,140.32,140.28,17.028864]
[1764881686335,19.40120801,140.32,140.29,0.72]
[1764881687662,20.09120801,140.32,140.28,23.43733117]
[1764881687844,20.09120801,140.32,140.29,0.72]
[1764881688044,19.40120801,140.32,140.29,0.72]
[1764881688376,7.12606,140.33,140.29,0.72]
[1764881688669,8.80994492,140.32,140.29,0.72]
[1764881689038,21.08444208,140.32,140.29,0.72]
[1764881689445,28.21129643,140.32,140.29,0.72]
[1764881690286,15.93679927,140.32,140.29,12.99449716]
[1764881690468,28.90129643,140.32,140.28,7.84846717]
[1764881691165,28.90129643,140.32,140.29,0.72]
[1764881691671,0.69,140.31,140.27,7.12901903]
[1764881691866,28.90129643,140.32,140.28,0.72]
[1764881693067,7.81739161,140.31,140.28,0.72]
[1764881693258,7.81739161,140.31,140.27,19.40351619]
[1764881693457,7.81739161,140.31,140.27,20.12351619]
[1764881693762,7.81739161,140.31,140.27,19.40351619]
[1764881693967,7.12739161,140.31,140.28,0.72]
[1764881696050,0.69,140.3,140.27,7.12901903]
[1764881696250,7.81765747,140.3,140.26,20.12399717]
[1764881696450,7.81765747,140.3,140.26,10.80919135]
[1764881696875,7.81765747,140.3,140.26,7.84950001]
[1764881697175,7.81765747,140.3,140.26,10.80919135]
[1764881697479,7.81765747,140.3,140.27,0.72]
[1764881698755,10.77734881,140.3,140.26,7.12950001]
[1764881698957,7.12765747,140.3,140.27,7.84906216]
[1764881699155,7.81765747,140.3,140.27,0.72]
[1764881700308,102.7,140.34,140.29,2.95969134]
[1764881700453,7.12266361,140.4,140.33,2.95969134]
[1764881700760,27.88862275,140.4,140.34,0.72]
[1764881700955,27.88862275,140.4,140.32,10.80625918]
[1764881700956,2.95969134,140.37,140.32,10.80625918]
[1764881701166,0.69,140.39,140.35,2.95969134]
[1764881701347,8.80994492,140.39,140.36,2.95969134]
[1764881701562,15.71221354,140.41,140.36,2.95969134]
[1764881701755,18.67190488,140.41,140.37,0.72]
[1764881701956,0.69,140.4,140.36,2.95969134]
[1764881702178,2.95969134,140.39,140.33,24.208864]
[1764881702358,15.93365271,140.38,140.34,14.16446887]
[1764881702557,16.62365271,140.38,140.34,14.88446887]
[1764881703173,15.93365271,140.38,140.35,7.75899939]
[1764881703470,15.93312532,140.39,140.35,7.75899939]
[1764881703666,16.62312532,140.39,140.35,7.75899939]
[1764881703872,16.62312532,140.39,140.35,0.72]
[1764881704175,23.66212471,140.39,140.35,7.75899939]
[1764881704373,16.62312532,140.39,140.36,7.03899939]
[1764881704575,16.62312532,140.39,140.35,7.84500297]
[1764881704747,0.69,140.38,140.35,7.75899939]
[1764881705278,16.62312532,140.39,140.35,7.75899939]
[1764881705578,7.72899939,140.38,140.33,14.1650586]
[1764881705779,8.80994492,140.37,140.33,22.0650586]
[1764881705955,9.49994492,140.37,140.33,22.7850586]
[1764881706157,8.80994492,140.37,140.34,0.72]
[1764881706357,8.80994492,140.37,140.34,7.75899939]
[1764881706566,15.93397438,140.37,140.34,7.75899939]
[1764881707393,15.93397438,140.37,140.33,15.02605921]
[1764881707394,0.69,140.36,140.33,7.03899939]
[1764881707689,15.93397438,140.37,140.33,14.88505404]
[1764881707690,16.62397438,140.37,140.33,14.88505404]
[1764881707919,16.62397438,140.37,140.34,7.03899939]
[1764881708269,16.62397438,140.37,140.33,14.88505404]
[1764881708587,16.62397438,140.37,140.34,7.03899939]
[1764881709572,34.80582621,140.4,140.36,7.03899939]
[1764881709902,9.49994492,140.39,140.35,0.72]
[1764881710271,7.12269814,140.4,140.35,0.72]
[1764881710479,8.80994492,140.39,140.37,7.03899939]
[1764881710790,8.80994492,140.39,140.35,7.75899939]
[1764881710974,8.80994492,140.39,140.36,7.03899939]
[1764881711288,8.80994492,140.39,140.36,7.75899939]
[1764881712194,8.80994492,140.39,140.36,14.88342239]
[1764881712382,15.93301837,140.39,140.36,0.72]
[1764881712702,15.93301837,140.39,140.35,14.16389555]
[1764881713002,0.71,140.38,140.34,15.0253773]
[1764881713297,0.71,140.38,140.35,0.67]
[1764881713474,126.38201776,140.39,140.35,0.67]
[1764881714099,0.71,140.38,140.34,22.06437669]
[1764881714280,0.71,140.38,140.34,22.73437669]
[1764881714475,0.71,140.38,140.34,7.7953773]
[1764881714678,14.87295982,140.38,140.34,7.1253773]
[1764881714878,8.80994492,140.37,140.33,22.73492932]
[1764881715096,9.51994492,140.37,140.33,22.73492932]
[1764881715301,9.51994492,140.37,140.33,22.06492932]
[1764881715598,9.51994492,140.37,140.34,0.67]
[1764881715795,9.51994492,140.37,140.33,22.06492932]
[1764881715980,16.64403833,140.37,140.34,0.67]
[1764881716394,16.64403833,140.37,140.34,7.03899939]
[1764881716697,16.64403833,140.37,140.33,14.16492932]
[1764881716906,16.64403833,140.37,140.34,0.67]
[1764881717275,103.41,140.39,140.36,7.03899939]
[1764881717480,102.7,140.39,140.36,7.70899939]
[1764881717902,110.53315525,140.39,140.36,7.70899939]
[1764881718274,110.53315525,140.39,140.34,25.60933986]
[1764881718595,0.71,140.38,140.35,7.70899939]
[1764881719191,0.71,140.38,140.35,0.67]
[1764881719385,0.71,140.38,140.35,7.79491417]
[1764881720002,7.8336461,140.38,140.35,0.67]
[1764881720181,7.8336461,140.38,140.35,7.12493592]
[1764881720383,0.71,140.38,140.35,7.79493592]
[1764881720582,8.80994492,140.38,140.35,14.83393531]
[1764881722203,102.7,140.39,140.36,7.70899939]
[1764881722402,109.8230298,140.39,140.36,7.70899939]
[1764881723006,109.8230298,140.39,140.36,0.67]
[1764881724497,12.47576415,140.38,140.34,17.98116835]
[1764881725005,0.71,140.37,140.34,7.12551322]
[1764881725208,8.80994492,140.38,140.35,7.7947742]
[1764881725381,8.80994492,140.38,140.36,7.12448728]
[1764881725587,8.80994492,140.38,140.36,0.67]
[1764881726202,8.80994492,140.38,140.35,10.08063287]
[1764881726409,8.80994492,140.38,140.35,10.75063287]